Cogmind - Beta 10.2 @@@ ROGUE MODE // 2021.01.14 @ 23:53:04 Player: Demise Result: Destroyed by 8R-AWN with 8R-AWN's Boregun Performance ------------- Evolutions (0) 0 Regions Visited (3) 600 Robots Destroyed (29) 145 Value Destroyed (530) 530 Prototype IDs (24) 480 Alien Tech Used (0) 0 Bonus (300) 300 TOTAL SCORE: 2055 Bonus ------- Aligned with FarCom 300 Cogmind --------- Core Integrity 0/250 Matter 98/300 Energy 100/100 System Corruption 0% Temperature Cool (0) Movement Core (800) Ox15 Location -10/Exiles Parts ------- > --- POWER (1) -------- (None) > --- PROPULSION (2) --- (None) > --- UTILITY (2) ------ Large Storage Unit High-capacity Storage Unit > --- WEAPON (2) ------- (None) > --- INVENTORY (18) --- (None) Peak State ------------ > --- POWER ------------ Light Angular Momentum Engine > --- PROPULSION ------- Light Treads Light Treads > --- UTILITY ---------- Bomb Drone Bay > --- WEAPON ----------- Light Assault Rifle Rocket Launcher > --- INVENTORY -------- Reinforced Deuterium Engine Fission Core Light Fission Core High-capacity Storage Unit [Rating: 25] Favorites ----------- Power Light Angular Momentum Engine Engine Light Angular Momentum Engine Power Core Light Nuclear Core Propulsion Light Treads Treads Light Treads Utility Large Storage Unit Device Improved Heat Sink Storage Large Storage Unit Processor Signal Interpreter Protection Light Armor Plating Weapon Light Assault Rifle Energy Gun EM Pulse Gun Ballistic Gun Light Assault Rifle Launcher Rocket Launcher Special Weapon Mining Laser Build | -11 -10 -10 -10 ------- Run | Scr Mat Min Exi Slots Evolved . | . . . . Power . | . . . . Propulsion . | . . . . Utility . | . . . . Weapon . | . . . . Parts Attached 41 | 7 16 8 10 Power 5 | 1 1 3 . Engine 4 | 1 . 3 . Core 1 | . 1 . . Reactor . | . . . . Propulsion 4 | 2 1 . 1 Treads 4 | 2 1 . 1 Leg . | . . . . Wheel . | . . . . Hover . | . . . . Flight . | . . . . Utility 11 | 1 4 1 5 Device 2 | . . 1 1 Storage 6 | 1 1 . 4 Processor 1 | . 1 . . Hackware . | . . . . Protection 2 | . 2 . . Artifact . | . . . . Weapon 21 | 3 10 4 4 Energy Gun 8 | 3 4 1 . Energy Cannon . | . . . . Ballistic Gun 7 | . 3 2 2 Ballistic Cannon . | . . . . Launcher 2 | . . . 2 Special Weapon 4 | . 3 1 . Impact Weapon . | . . . . Slashing Weapon . | . . . . Piercing Weapon . | . . . . Special Melee Weapon . | . . . . Unidentified Prototypes 1 | . . . 1 Parts Lost 11 | . 1 1 9 Power 1 | . . . 1 Propulsion 3 | . . . 3 Utility 1 | . . . 1 Weapon 6 | . 1 1 4 Highest Loss Streak 9 | . 1 1 9 Average Slot Usage (%) 95 | . 94 99 93 Engine 8 | . 3 11 12 Core 5 | . 10 2 . Treads 27 | . 28 28 27 Device 1 | . . . 4 Storage 15 | . 14 14 19 Processor 1 | . 2 . . Protection 6 | . 6 13 . Energy Gun 12 | . 21 12 . Ballistic Gun 12 | . 2 14 25 Special Weapon 1 | . 3 . . Naked Turns . | . . . . Heaviest Build 75 | 11 28 31 75 Greatest Support 40 | 40 40 40 40 Greatest Overweight (x) 2 | . . . 2 Average Overweight (x) . | . . . . Largest Inventory Capacity 20 | 6 12 10 20 Average Capacity 11 | 5 9 10 15 Most Carried 20 | 4 10 10 20 Average Carried 9 | 3 8 9 11 Final Capacity 18 | 6 10 10 18 Final Carried 10 | 3 10 10 . Class Distribution -------------------- 71% | Mutant 15% | Hauler-Mutant 13% | Scavenger-Mutant Dominant Class ---------------- Mutant | -10/Materials Mutant | -10/Mines Hauler-Mutant | -10/Exiles Resources | -11 -10 -10 -10 ----------- Run | Scr Mat Min Exi Matter Collected 905 | 270 505 130 . Remotely . | . . . . Salvage Created 1004 | 142 509 353 . Parts 71 | 5 39 27 . Haulers Intercepted 2 | . 2 . . Recyclers Shooed 2 | 2 . . . Parts Field Recycled . | . . . . Retrieved Matter . | . . . . Parts Self-Destructed . | . . . . Prevented . | . . . . Kills | -11 -10 -10 -10 ------- Run | Scr Mat Min Exi Combat Hostiles Destroyed 16 | . 7 8 1 Guns 14 | . 6 8 . AOE 2 | . 1 . 1 Classes Destroyed 9 | 2 5 1 1 Worker 1 | . . 1 . Builder 3 | . 2 1 . Tunneler 4 | 2 . 2 . Hauler 2 | . 2 . . Recycler 2 | 1 1 . . Watcher 2 | . 2 . . Swarmer 6 | . 3 3 . Grunt 9 | . 4 5 . Assembled 1 | . . . 1 Best Kill Streak 4 | 3 4 3 1 Combat Bots Only 3 | . 3 3 1 Max Kills in Single Turn 3 | 1 3 1 1 Gunslinging . | . . . . Exploded 1 | . 1 . 1 Melee . | . . . . Uniques/NPCs Destroyed . | . . . . Combat | -11 -10 -10 -10 -------- Run | Scr Mat Min Exi Damage Taken 1573 | . 355 394 824 Core 250 | . 96 57 97 Absorbed by Shields . | . . . . Core Remaining (%) 100 | 100 . . . Volleys Fired 133 | 10 59 35 29 Largest 2 | 2 2 2 2 Hottest 100 | 80 100 100 53 Shots Fired 226 | 20 97 61 48 Gun 193 | 20 81 55 37 Cannon . | . . . . Launcher 11 | . . . 11 Special 22 | . 16 6 . Kinetic 90 | . 19 34 37 Thermal 39 | . 33 6 . Explosive 11 | . . . 11 Electromagnetic 86 | 20 45 21 . Robot Hit Streak 11 | 3 9 11 9 Robot Miss Streak 3 | 2 3 3 3 Penetration Max . | . . . . Secondary Targets 4 | . 1 3 . Max Gunslinging Chain 1 | . 1 1 . Shots Hit Robots 133 | 13 51 36 33 Core Hits 63 | 4 24 20 15 Critical Hits . | . . . . Critical Kills . | . . . . Critical Parts Destroyed . | . . . . Melee Attacks . | . . . . Impact . | . . . . Slashing . | . . . . Piercing . | . . . . Sneak Attacks . | . . . . Combat Hostiles . | . . . . Follow-up Attacks . | . . . . Damage Inflicted 1647 | 195 697 420 335 Guns 1393 | 165 561 420 247 Cannons . | . . . . Explosions 243 | 30 131 . 82 Melee . | . . . . Ramming 11 | . 5 . 6 Kinetic 531 | . 105 179 247 Thermal 290 | 30 260 . . Explosive 82 | . . . 82 Electromagnetic 733 | 165 327 241 . Impact . | . . . . Slashing . | . . . . Piercing . | . . . . Highest Corruption . | . . . . Average Corruption . | . . . . Corruption Purged . | . . . . Overload Shots . | . . . . Overflow Damage . | . . . . Projectiles . | . . . . Explosions . | . . . . Melee . | . . . . Knockbacks . | . . . . Impact . | . . . . Kinetic . | . . . . Secondary . | . . . . Self-Inflicted Damage 40 | . 40 . . Shots 1 | . 1 . . Rammed 5 | . 2 . 3 Targets Rammed 5 | . 2 . 3 Kicked . | . . . . Crushed . | . . . . Highest Temperature 280 | 90 280 183 8 Average Temperature 57 | 40 61 60 3 Received Heat Transfer 297 | . 126 171 . Siege Activations . | . . . . Robots Corrupted . | . . . . Combat Hostiles . | . . . . Parts Fried . | . . . . Impact Corruptions . | . . . . Robots Melted . | . . . . Combat Hostiles . | . . . . Parts Melted 1 | . 1 . . Heat Transferred 575 | 50 525 . . Parts Sabotaged . | . . . . Parts Stolen . | . . . . Parts Stripped . | . . . . Power Chain Reactions 3 | 1 2 . . Missiles Intercepted . | . . . . Alert | -11 -10 -10 -10 ------- Run | Scr Mat Min Exi Peak Influence 177 | 15 177 118 . Initial 23 | . 9 23 . Average 47 | 6 43 56 . Maximum Alert Level . | . . . . Low Security (%) 100 | 100 100 100 . Level 1 . | . . . . Level 2 . | . . . . Level 3 . | . . . . Level 4 . | . . . . Level 5 . | . . . . High Security . | . . . . Max Security . | . . . . Squads Dispatched 1 | . . 1 . Investigation 1 | . . 1 . Extermination . | . . . . Reinforcement . | . . . . Assault . | . . . . Garrison . | . . . . Intercept . | . . . . Construction Impeded . | . . . . Haulers Reinforced . | . . . . Stealth | -11 -10 -10 -10 --------- Run | Scr Mat Min Exi Distress Signals 1 | . 1 . . Communications Jammed . | . . . . Distress Signals . | . . . . Times Spotted 32 | . 20 8 4 Peak Tracking Total 9 | . 5 3 9 Tactical Retreats 2 | . 2 . . Traps | -11 -10 -10 -10 ------- Run | Scr Mat Min Exi Traps Triggered . | . . . . Indirectly . | . . . . Trap Hack Attempts . | . . . . Triggered . | . . . . Disarmed . | . . . . Reprogrammed . | . . . . Reused . | . . . . Traps Extracted . | . . . . Installed . | . . . . Triggered . | . . . . Exploded 3 | . . . 3 Machines | -11 -10 -10 -10 ---------- Run | Scr Mat Min Exi Machines Disabled 6 | . . 2 4 Max in Single Turn 2 | . . 1 2 Machines Sabotaged . | . . . . Garrisons Compromised . | . . . . Overloaded Fab Kills . | . . . . Fab Network Shutdowns . | . . . . Hacking | -11 -10 -10 -10 --------- Run | Scr Mat Min Exi Machines Accessed 15 | . 11 2 2 Terminals 8 | . 8 . . Fabricators . | . . . . Repair Stations 1 | . 1 . . Recycling Units 2 | . 2 . . Scanalyzers . | . . . . Garrison Access . | . . . . Total Hacks 31 | . 27 2 2 Successful 20 | . 16 2 2 Failed 10 | . 10 . . Catastrophic 1 | . 1 . . Database Lockouts 1 | . 1 . . Manual 18 | . 17 . 1 Terminals 18 | . 18 . . Fabricators . | . . . . Repair Stations 2 | . 2 . . Recycling Units 7 | . 7 . . Scanalyzers . | . . . . Garrison Access . | . . . . Terminal Hacks 8 | . 4 2 2 Record 1 | . . . 1 Robot Analysis 1 | . 1 . . Open Door 2 | . . 2 . Terminal Index 1 | . 1 . . Locate Traps 1 | . 1 . . Zone Layout 1 | . 1 . . EX-Prototype ID Bank 1 | . . . 1 Fabricator Hacks . | . . . . Repair Station Hacks 2 | . 2 . . Scan Component 1 | . 1 . . Repair 1 | . 1 . . Recycling Unit Hacks 2 | . 2 . . Retrieve Components 2 | . 2 . . Scanalyzer . | . . . . Garrison Access Hacks . | . . . . Unauthorized Hacks 8 | . 8 . . Terminals 6 | . 6 . . Assimilate 1 | . 1 . . Botnet 4 | . 4 . . Operators 1 | . 1 . . Fabricators . | . . . . Repair Stations . | . . . . Recycling Units 2 | . 2 . . Reject 2 | . 2 . . Scanalyzers . | . . . . Garrison Access . | . . . . Data Cores Recovered . | . . . . Used . | . . . . Hacking Detections 7 | . 7 . . Full Trace Events . | . . . . Feedback Events . | . . . . Feedback Blocked . | . . . . Robot Schematics Acquired . | . . . . Robots Built . | . . . . Matter . | . . . . Time . | . . . . Total Robot Build Rating . | . . . . Part Schematics Acquired . | . . . . Parts Built . | . . . . Matter . | . . . . Time . | . . . . Total Part Build Rating . | . . . . Parts Repaired 1 | . 1 . . Time 26 | . 26 . . Parts Recycled . | . . . . Recycled Matter . | . . . . Retrieved Matter . | . . . . Retrieved Components 14 | . 14 . . Parts Scanalyzed . | . . . . Part Schematics Acquired . | . . . . Parts Damaged . | . . . . Bothacking | -11 -10 -10 -10 ------------ Run | Scr Mat Min Exi Used RIF Installer . | . . . . Robots Hacked . | . . . . Non-combat . | . . . . Combat . | . . . . Robot Hacks Applied . | . . . . Relay Couplers Released . | . . . . Robots Rewired . | . . . . Allies Hacked . | . . . . Hacks Repelled . | . . . . Allies | -11 -10 -10 -10 -------- Run | Scr Mat Min Exi Total Allies 1 | . 1 . . Largest Group 1 | . 1 . . Highest-Rated Group 10 | . 10 . . Highest-Rated Ally 10 | . 10 . . Total Orders 1 | . 1 . . STAY 1 | . 1 . . Ally Attacks 14 | . . . 14 Total Damage . | . . . . Kills . | . . . . Allies Corrupted . | . . . . Allies Melted . | . . . . Intel | -11 -10 -10 -10 ------- Run | Scr Mat Min Exi Robot Analysis Total 1 | . 1 . . Derelict Logs Recovered 2 | . . 2 . Drone Launches 17 | . . . 17 Drone Recoveries 1 | . . . 1 Exploration | -11 -10 -10 -10 ------------- Run | Scr Mat Min Exi Turns Passed 3695 | 95 1479 1100 1021 Spaces Moved 1898 | 46 741 603 508 Core 21 | 21 . . . Treads 1877 | 25 741 603 508 Legs . | . . . . Wheels . | . . . . Hover . | . . . . Flight . | . . . . Fastest Speed 50 | 50 160 160 160 Average Speed 162 | 109 160 160 174 Slowest Speed 200 | 160 160 160 200 Overloaded Moves . | . . . . Propulsion Burnouts . | . . . . Robots Hopped . | . . . . Cave-ins Triggered . | . . . . Exploration Rate (%) 66 | 4 98 94 70 Regions Visited 3 Branch Regions 2 Pre-discovered Areas 2 | . . 1 1 Known Exits Taken 1 | . 1 . . Unknown Exits Taken 2 | 1 . 1 . Scrap Searched 3 | . . 3 . Spaces Dug 15 | . 9 . 6 Terrain Destroyed 70 | 6 23 . 41 Melee . | . . . . Projectile 12 | . 12 . . AOE 58 | 6 11 . 41 Terrain Rammed . | . . . . Walls Destroyed . | . . . . Machines Disabled . | . . . . Actions | -11 -10 -10 -10 --------- Run | Scr Mat Min Exi Total 2266 | 69 912 677 608 Wait 100 | . 69 8 23 Move 1895 | 45 740 602 508 Hop . | . . . . Pick Up 42 | 7 15 10 10 Fast Attach 11 | 2 3 2 4 Attach 16 | 4 5 2 5 Detach 8 | . 3 . 5 Swap 14 | 1 8 4 1 Drop 42 | . 8 14 20 Fire 133 | 10 59 35 29 Melee . | . . . . Ram . | . . . . Kick . | . . . . Crush 5 | . 2 . 3 Escape Stasis . | . . . . Rewire . | . . . . Trap . | . . . . Miscellaneous . | . . . . Route ------- -11/Scrapyard -10/Materials (discovered 5 exits: *Mat x3 / *Min x2) -10/Mines (discovered 3 exits: *Mat x2 / *Exi) -10/Exiles (discovered 1 exit: [*Min]) History --------- Turn | Location | Event 12 | -11/Scrapyard | Discovered new exit (range 15) 96 | -11/Scrapyard | Entered Materials 305 | -10/Materials | Build established: Mutant 562 | -10/Materials | Discovered new exit (range 16) 766 | -10/Materials | Identified exit to Mines 1002 | -10/Materials | Repaired Lgt. Assault Rifle 1016 | -10/Materials | Discovered new exit (range 15) 1039 | -10/Materials | Identified exit to Materials 1153 | -10/Materials | Discovered exit to Materials (range 6) 1178 | -10/Materials | Central database locked down 1301 | -10/Materials | Discovered exit to Mines (range 12) 1348 | -10/Materials | Discovered exit to Materials (range 20) 1575 | -10/Materials | Entered Mines 1675 | -10/Mines | Learned location of Zion (-7) 1711 | -10/Mines | Received a Rocket Launcher from a helpful Derelict 2006 | -10/Mines | Met a Derelict shopkeep closing up shop 2244 | -10/Mines | Core integrity fell below 50% 2269 | -10/Mines | Discovered exit to Materials (range 8) 2519 | -10/Mines | Discovered exit to Materials (range 11) 2531 | -10/Mines | Found the Drone Emporium 2532 | -10/Mines | Learned Materials stockpile data 2541 | -10/Mines | Found Prototype Device 2668 | -10/Mines | Deemed a non-threat by the Exiles lab entrance 2668 | -10/Mines | Discovered new exit (range 5) 2675 | -10/Mines | Entered Exiles 2714 | -10/Exiles | Met 8R-AWN 2743 | -10/Exiles | Met EX-HEX 2851 | -10/Exiles | Met EX-DEC 2912 | -10/Exiles | Met EX-BIN 2937 | -10/Exiles | Aligned with FarCom system 2939 | -10/Exiles | Given EX-Vault access code 2984 | -10/Exiles | Opened EX-Vault 2995 | -10/Exiles | Found Latent Energy Streamer 2997 | -10/Exiles | Found AWS/Autocannon 3047 | -10/Exiles | Warned to stay clear of 0b10 Research branches 3104 | -10/Exiles | Build established: Hauler-Mutant 3372 | -10/Exiles | Discovered new exit (range 10) 3489 | -10/Exiles | Identified Bomb Drone Bay 3518 | -10/Exiles | Attacked by the Exiles 3677 | -10/Exiles | Core integrity fell below 20% 3696 | -10/Exiles | Destroyed by 8R-AWN with 8R-AWN's Boregun Last Messages --------------- 03683_ Penetrated by HV Slug. 03683_ Critical hit. 03683_ Lgt. Treads destroyed. 03683_ HV Slug penetrates Earth. 03687_ Penetrated by HV Slug. 03687_ HV Slug penetrates Earth. 03687_ HV Slug penetrates Wall. 03687_ HV Slug penetrates Earth. 03689_ The unstable cave ceiling collapses. 03689_ Slammed into 8R-AWN. 03691_ Penetrated by HV Slug. 03691_ HV Slug penetrates Wall. 03691_ Penetrated by HV Slug. 03691_ HV Slug penetrates Wall. 03691_ Slammed into 8R-AWN. 03696_ Penetrated by HV Slug. 03696_ Critical hit. 03696_ Lgt. Treads destroyed. 03696_ HV Slug penetrates Wall. 03696_ Penetrated by HV Slug. Map ----- +----------------------------------------------------+ | ?????????????????????????????????????????????????? | | ?????????????????????????????????????????????????? | | ?????????????????????????????????????????????????? | | ?????????#####???????????????????????????????????? | | ????????## ##??????????????????????????????????? | | ????????# #??????????????????????????????????? | | ????????# < #??????????????????????????????????? | | ????????# ###????????????????????????????????? | | ????????# !!] #????????????????????????????????? | | ????????#|!!!! #?????????????????????????????????? | | ????????##!!] #?????????????????????????????????? | | ?????????# ##????????????????????????????????? | | ?????????## #????????????#######?????????????? | | ??????????# #######??????#!!! "#?????????????? | | ??????????# #""##?????# "#?????????????? | | ??????????## #?????# "#?????????????? | | ???????????##" ##???## ""#????????????## | | ???????????#"" #####" ""#???????????? | | ???????????#### ## ##???????????" | | ??????????????## # #???????????" | | ???????????????#"## ##?????????"" | | ???????????????####### # ###?????"" | | ?????????????????????# # # ##???? | | ????????????########## # ##?????" | | ???????????## ; ! ## #?????# | | ???????????# ;! @ ## ##??### | | ?????# #! g ####X# | | ?????#### # ??#! | | ??????????#?# ; ! # # | | ????????????########### # | | ??????????????????????### # ## | | ?????????????????????????##### # ### | | ?????????????????????????????# # | | ?????????????????????????????## # | | ??????????????????????????????## # " | | ???????????????????????????????##########""" | | ???????????????????????????????????????##" | | ???????????????????????????????????????#"" | | ???????????????????????????????????????#""" | | ???????????????????????????????????????""" | | ???????????????????????????????????????""" | | ??????????????????????????????????????#"" | | ??????????????????????????????????????#""" | | ???????????????????????????????????????"" | | ???????????????????????????????????????#"" | | ???????????????????????????????????????#"""" | | ????????????????????????????????????????# | | ????????????????????????????????????????#" | | ????????????????????????????????????????#"""" | | ????????????????????????????????????????#"" | +----------------------------------------------------+ Best States ------------- Heat Dissipation 39 Energy Generation 18 Energy Capacity 250 Matter Stores 300 Matter Capacity 300 Sight Range 16 Terrain Scan Density 10 Armor Coverage 150 Evasion (%) 50 Recoil Reduction 2 Item Schematics ----------------- None Robot Schematics ------------------ None Fabricated ------------ Nothing Alien Tech Used ----------------- None Achievements -------------- None Challenges ------------ None Game ------ Seed WeldingIonFrame Manual? 0 Play Time 00:23:47 Cumulative 205.6 hours Start 2021.01.14 @ 17:25:58 End 2021.01.14 @ 23:53:04 Sessions 2 Manual Loads 0 Difficulty Rogue Special Mode None Game No. 191 Rogue 191 Adventurer 0 Explorer 0 Win Type - Total 0 Types 0/0/0/0/0/0/0/0/0 Lore% 59 Gallery% 69 Achievement% 54 Wizard Run 0 Options --------- ASCII 0 Keyboard 1 Movement Numpad Keybinds 0 Fullscreen 1 Font 12/Terminus Map View 83x54 Tactical HUD 1 Map Filters NONE Filters NONE Steam 1 RUN: 5ce8f2bf-44de-4806-a24a-71f774f959e7